Workbook

Sheet РЕЗ
B1: КОНАЧНИ РЕЗУЛТАТИ
B2: 9. Српска физичка олимпијада
B3: средње школе
A4: Р. Бр. | B4: Име и презиме | C4: Школа (скратити) | D4: Место | E4: ПУНО име и презиме наставника | F4: Зад.1. | G4: Зад.2.1 | H4: Зад.2.2 | I4: Зад.3.1 | J4: Зад.3.2 | K4: Зад.3.3 | L4: Зад.3.4 | M4: Зад.3.5 | N4: Зад.3.6 | O4: Зад.3.7 | P4: Зад.3.8 | Q4: Теор. | R4: Т. норм. | S4: Eksp.1 | T4: Eksp.2 | U4: Eksp.3.1 | V4: Eksp.3.2 | W4: Експ. | X4: Е. норм. | Y4: Укупно | Z4: Награда
A5: 1 | B5: Душан Новичић | C5: Математичка гимназија | D5: Београд | E5: Наташа Чалуковић, Александра Димић | F5: 10 | G5: 5 | H5: 5 | I5: 1.5 | J5: 2 | K5: 1 | L5: 0.4 | M5: 0.5 | N5: 1.6 | O5: 0.2 | P5: 0.25 | Q5: =SUM(F5:P5) -> 27.45 | R5: =Q5*60/27.45 -> 60.00 | S5: 0.30 | T5: 0.20 | U5: 8.05 | V5: 7.65 | W5: =SUM(S5:V5) -> 16.20 | X5: =40*W5/19.9 -> 32.56 | Y5: =SUM(X5+R5) -> 92.56 | Z5: I
A6: 2 | B6: Јанко Шуштершич | C6: Прва крагујевачка гимназија | D6: Крагујевац | E6: Ана Жлибар | F6: 9 | G6: 5 | H6: 4.05 | I6: 1.4 | J6: 2 | K6: 1 | L6: 0.5 | M6: 0.5 | N6: 0.25 | P6: 0.25 | Q6: =SUM(F6:P6) -> 23.95 | R6: 52.35 | S6: 0.30 | T6: 0.20 | U6: 9.50 | V6: 9.10 | W6: 19.10 | X6: 38.39 | Y6: 90.74 | Z6: I
A7: 3 | B7: Марија Шиндик | C7: Математичка гимназија | D7: Београд | E7: Иван Станић | F7: 9 | G7: 4 | H7: 5 | I7: 1.5 | J7: 0 | K7: 1 | L7: 0.5 | M7: 0.5 | N7: 1 | O7: 0 | P7: 0 | Q7: =SUM(F7:P7) -> 22.5 | R7: 49.18 | S7: 0.30 | T7: 0.20 | U7: 10.30 | V7: 9.10 | W7: 19.90 | X7: 40.00 | Y7: 89.18 | Z7: I
A8: 4 | B8: Жељко Арсић | C8: ЕТШ "Никола Тесла" | D8: Панчево | E8: Јелена Марковић | F8: 9 | G8: 3.5 | H8: 3.1 | I8: 1 | J8: 1.75 | K8: 0.8 | L8: 0.5 | M8: 0.3 | Q8: =SUM(F8:P8) -> 19.95 | R8: 43.61 | S8: 0.30 | T8: 0.20 | U8: 9.70 | V8: 8.75 | W8: 18.95 | X8: 38.09 | Y8: 81.70 | Z8: II
A9: 5 | B9: Радоица Драшкић | C9: Шабачка гимназија | D9: Шабац | E9: Јасмина Ђокић Јовановић | F9: 9 | G9: 3 | H9: 4.65 | I9: 0.25 | J9: 2 | K9: 1 | L9: 0.5 | M9: 0.4 | Q9: =SUM(F9:P9) -> 20.8 | R9: 45.46 | S9: 0.00 | T9: 0.20 | U9: 10.40 | V9: 7.20 | W9: 17.80 | X9: 35.78 | Y9: 81.24 | Z9: II
A10: 6 | B10: Михајло Спорић | C10: Математичка гимназија | D10: Београд | E10: Наташа Чалуковић, Александра Димић | F10: 9 | G10: 5 | H10: 5 | I10: 1.5 | J10: 2 | K10: 1 | L10: 0.5 | M10: 0.5 | N10: 2 | Q10: =SUM(F10:P10) -> 26.5 | R10: 57.92 | S10: 0.30 | T10: 0.20 | U10: 5.20 | V10: 5.80 | W10: 11.50 | X10: 23.12 | Y10: 81.04 | Z10: II
A11: 7 | B11: Јован Јовановић | C11: XIII београдска гимназија | D11: Београд | E11: Романа Црнковић | F11: 10 | G11: 4 | H11: 4.1 | I11: 1.5 | J11: 0.5 | K11: 1 | L11: 0.5 | M11: 0.5 | N11: 1.5 | P11: 1 | Q11: =SUM(F11:P11) -> 24.6 | R11: 53.77 | S11: 0.30 | T11: 0.20 | U11: 6.70 | V11: 6.30 | W11: 13.50 | X11: 27.14 | Y11: 80.91 | Z11: II
A12: 8 | B12: Стефан Ђорђевић | C12: Математичка гимназија | D12: Београд | E12: Наташа Чалуковић, Александра Димић | F12: 9 | G12: 5 | H12: 2.95 | I12: 1.5 | J12: 0.5 | K12: 0.8 | L12: 0.5 | M12: 0.4 | N12: 1 | Q12: =SUM(F12:P12) -> 21.65 | R12: 47.32 | S12: 0.30 | T12: 0.20 | U12: 6.00 | V12: 6.05 | W12: 12.55 | X12: 25.23 | Y12: 72.55 | Z12: II
A13: 9 | B13: Душан Ђорђевић | C13: Математичка гимназија | D13: Београд | E13: Наташа Чалуковић | F13: 9 | G13: 4 | H13: 3.95 | I13: 0 | J13: 1 | K13: 0.8 | L13: 0.4 | M13: 0.4 | N13: 0.25 | P13: 0.5 | Q13: =SUM(F13:P13) -> 20.3 | R13: 44.37 | S13: 0.30 | T13: 0.00 | U13: 3.90 | V13: 4.30 | W13: 8.50 | X13: 17.09 | Y13: 61.46 | Z13: II
A14: 10 | B14: Младен Самарџић | C14: Шабачка гимназија | D14: Шабац | E14: Снежана Вуковић | F14: 10 | G14: 1 | H14: 4.3 | I14: 1.5 | J14: 1.75 | K14: 1 | L14: 0.5 | M14: 0.5 | Q14: =SUM(F14:P14) -> 20.55 | R14: 44.92 | S14: -0.60 | T14: 0.20 | U14: 4.85 | V14: 0.10 | W14: 4.55 | X14: 9.15 | Y14: 54.06 | Z14: III
A15: 11 | B15: Стефан Јока | C15: Гимназија "Јован Јовановић Змај" | D15: Нови Сад | E15: Милка Веселиновић | F15: 9 | G15: 5 | H15: 4.25 | J15: 2 | K15: 0.8 | L15: 0.5 | M15: 0.4 | P15: 0.75 | Q15: =SUM(F15:P15) -> 22.7 | R15: 49.62 | S15: 0.30 | T15: 0.20 | U15: 0.20 | V15: 0.00 | W15: 0.70 | X15: 1.41 | Y15: 51.02 | Z15: III
A16: 12 | B16: Стефан Веља | C16: Гимназија "Јован Јовановић Змај" | D16: Нови Сад | E16: Имре Гут | F16: 9 | G16: 5 | H16: 4.15 | K16: 1 | L16: 0.5 | M16: 0.25 | O16: 0.1 | P16: 0.5 | Q16: =SUM(F16:P16) -> 20.5 | R16: 44.81 | S16: 0.30 | T16: 0.20 | U16: 0.50 | V16: 0.10 | W16: 1.10 | X16: 2.21 | Y16: 47.02 | Z16: III
A17: 13 | B17: Марко Пурић | C17: Математичка гимназија | D17: Београд | E17: Катарина Матић | F17: 9 | G17: 4 | H17: 2.75 | I17: 0 | J17: 2 | K17: 1 | L17: 0.5 | M17: 0.4 | Q17: =SUM(F17:P17) -> 19.65 | R17: 42.95 | Z17: III
A18: 14 | B18: Милица Бановић | C18: Гимназија "Јован Јовановић Змај" | D18: Нови Сад | E18: Имре Гут | F18: 9 | G18: 3 | H18: 3.55 | J18: 1.75 | K18: 1 | L18: 0.5 | M18: 0.5 | N18: 0.25 | Q18: =SUM(F18:P18) -> 19.55 | R18: 42.73 | Z18: III
A19: 15 | B19: Марко Неранчић | C19: Гимназија "Јован Јовановић Змај" | D19: Нови Сад | E19: Стеван Јанков | F19: 10 | G19: 5 | H19: 2.5 | I19: 0 | J19: 0 | K19: 0.8 | L19: 0.5 | M19: 0.4 | Q19: =SUM(F19:P19) -> 19.2 | R19: 41.97 | Z19: III
A20: 16 | B20: Милоје Ћукановић | C20: Гимназија "Вук Караџић" | D20: Лозница | E20: Мирослав Ристановић | F20: 10 | G20: 2 | H20: 4.3 | I20: 0.25 | J20: 0 | K20: 1 | L20: 0.5 | M20: 0.4 | N20: 0 | O20: 0 | P20: 0.5 | Q20: =SUM(F20:P20) -> 18.95 | R20: 41.42 | Z20: III
A21: 17 | B21: Предраг Јекић | C21: Математичка гимназија | D21: Београд | E21: Иван Станић | F21: 9 | G21: 2.5 | H21: 3.75 | I21: 0 | J21: 2 | K21: 0.8 | L21: 0.5 | Q21: =SUM(F21:P21) -> 18.55 | R21: 40.55 | Z21: III
A22: 18 | B22: Вук Радовић | C22: Математичка гимназија | D22: Београд | E22: Катарина Матић | F22: 6.75 | G22: 4 | H22: 4 | I22: 0 | J22: 1.25 | K22: 1 | L22: 0.5 | M22: 0.5 | Q22: =SUM(F22:P22) -> 18 | R22: 39.34 | Z22: похвала
A23: 19 | B23: Богдана Јелић | C23: Математичка гимназија | D23: Београд | E23: Иван Станић | F23: 9 | G23: 4 | H23: 3.05 | K23: 1 | L23: 0.4 | M23: 0.2 | N23: 0.25 | Q23: =SUM(F23:P23) -> 17.9 | R23: 39.13 | Z23: похвала
A24: 20 | B24: Ирена Ђорђевић | C24: Гимназија ''Светозар Марковић'' | D24: Ниш | E24: Драгољуб Димитријевић | F24: 9 | G24: 2.5 | H24: 4 | K24: 1 | L24: 0.5 | M24: 0.4 | N24: 0.25 | Q24: =SUM(F24:P24) -> 17.65 | R24: 38.58 | Z24: похвала
A25: 21 | B25: Никола Зарић | C25: Гимназија | D25: Чачак | E25: Бојана Лазаревић | F25: 9.5 | G25: 2 | H25: 2.8 | I25: 0 | J25: 2 | K25: 1 | Q25: =SUM(F25:P25) -> 17.3 | R25: 37.81 | Z25: похвала
A26: 22 | B26: Димитрије Ердељан | C26: Гимназија "Јован Јовановић Змај" | D26: Нови Сад | E26: Имре Гут | F26: 7.4 | G26: 3 | H26: 3 | I26: 1.5 | J26: 0 | K26: 0.8 | L26: 0.4 | M26: 0.3 | P26: 0.5 | Q26: =SUM(F26:P26) -> 16.9 | R26: 36.94 | Z26: похвала
A27: 23 | B27: Ненад Ђаловић | C27: Средња школа Свилајнац | D27: Свилајнац | E27: Татјана Пајић | F27: 7.25 | G27: 4 | H27: 2.8 | K27: 1 | L27: 0.4 | M27: 0.5 | N27: 0.25 | Q27: =SUM(F27:P27) -> 16.2 | R27: 35.41 | Z27: похвала
A28: 24 | B28: Иван Глувачевић | C28: XIV београдска гимназија | D28: Београд | E28: Радојка Станичић | F28: 9 | G28: 4 | H28: 2.25 | Q28: =SUM(F28:P28) -> 15.25 | R28: 33.33
A29: 25 | B29: Софија Петровић | C29: Математичка гимназија | D29: Београд | E29: Иван Станић | F29: 9 | G29: 3.5 | H29: 1.25 | I29: 0.25 | J29: 0 | K29: 0.85 | Q29: =SUM(F29:P29) -> 14.85 | R29: 32.46
A30: 26 | B30: Катарина Станковић | C30: Шабачка гимназија | D30: Шабац | E30: Снежана Вуковић | F30: 7.25 | G30: 3.5 | H30: 1.9 | I30: 0.25 | J30: 0 | K30: 1 | L30: 0.5 | M30: 0.2 | Q30: =SUM(F30:P30) -> 14.6 | R30: 31.91
A31: 27 | B31: Немања Филиповић | C31: XIII београдска гимназија | D31: Београд | E31: Драган Ристић | F31: 9 | G31: 1.3 | H31: 1.3 | K31: 1 | L31: 0.5 | M31: 0.5 | P31: 0.5 | Q31: =SUM(F31:P31) -> 14.1 | R31: 30.82
A32: 28 | B32: Милош Селаковић | C32: Ужичка гимназија | D32: Ужице | E32: Цмиљка Васовић | F32: 3 | G32: 0.6 | H32: 2.8 | I32: 0.25 | J32: 0.95 | K32: 1 | L32: 0.5 | M32: 0.5 | Q32: =SUM(F32:P32) -> 9.6 | R32: 20.98
A33: 29 | B33: Милош Стамболић | C33: Средња школа Свети Ахилије | D33: Ариље | E33: Милија Топаловић | F33: 0 | G33: 4.5 | H33: 2.75 | K33: 1 | L33: 0.5 | M33: 0.5 | N33: 0.25 | Q33: =SUM(F33:P33) -> 9.5 | R33: 20.77
A34: 30 | B34: Маја Пантић | C34: Математичка гимназија | D34: Београд | E34: Иван Станић | F34: 4.5 | G34: 2.6 | K34: 1 | L34: 0.5 | M34: 0.5 | Q34: =SUM(F34:P34) -> 9.1 | R34: 19.89
A35: 31 | B35: Андреј Илић | C35: Математичка гимназија | D35: Београд | E35: Иван Станић | F35: 1.75 | G35: 1 | H35: 2.2 | I35: 0.55 | K35: 1 | L35: 0.4 | M35: 0.4 | Q35: =SUM(F35:P35) -> 7.3 | R35: 15.96
A36: 32 | B36: Немања Мадић | C36: Гимназија ''Светозар Марковић'' | D36: Ниш | E36: Драгољуб Димитријевић | F36: 3 | G36: 1.5 | I36: 0.25 | K36: 0.8 | L36: 0.5 | N36: 0.25 | Q36: =SUM(F36:P36) -> 6.3 | R36: 13.77
A37: 33 | B37: Блажо Ђурнић | C37: Гимназија "Јован Јовановић Змај" | D37: Нови Сад | E37: Драгана Сумзер, Имре Гут | F37: 3 | G37: 0 | H37: 0.5 | I37: 0 | J37: 0 | K37: 1 | L37: 0 | M37: 0.1 | Q37: =SUM(F37:P37) -> 4.6 | R37: 10.05
A38: 34 | B38: Филип Милојковић | C38: Пета београдска гимназија | D38: Београд | E38: Мирјана Марковић | J38: 1.75 | K38: 1 | L38: 0.5 | M38: 0.4 | Q38: =SUM(F38:P38) -> 3.65 | R38: 7.98
E40: На међународну олимпијаду су се пласирали првих пет ученика, шести и седми ученик су прва и друга резерва | H40: На експериментални део такмичења се позивају ученици закључно са редним бројем 12
